fUST/lending_fUST_20240417
["ID","MTS","AMOUNT","RATE_DAILY","PERIOD"]
[322792018,1713303043883,-382.57483597,0.0002834,2]
[322792020,1713303043894,-577.47369562,0.0002834,2]
[322792022,1713303043903,-747.545783,0.00028685,2]
[322792023,1713303043913,-309.62845823,0.00029829,2]
[322792024,1713303043923,-300.0,0.00029829,2]
[322792025,1713303043932,-300.0,0.00029829,2]
[322792026,1713303043942,-241.01674728,0.0002983,2]
[322792027,1713303043952,-536.80664274,0.0002983,2]
[322792206,1713304243914,-227.425571,0.00027397,2]
[322792207,1713304243923,-169.9061668,0.00027728,2]
[322792208,1713304244027,-378.63918578,0.00027728,2]
[322792209,1713304244088,-73.99702644,0.00027728,2]
[322792210,1713304244098,-181.46891214,0.00027729,2]
[322792212,1713304244109,-1391.32055494,0.00028,4]
[322792214,1713304244121,-1608.67944506,0.00028,4]
[322792216,1713304244130,-195.64397794,0.00028089,2]
[322792219,1713304244143,-551.90180506,0.00028089,2]
[322792221,1713304244152,-2460.56952181,0.00028124,2]
[322792242,1713304246801,-35.31429719,0.00028124,2]
[322792244,1713304246811,-250.0,0.00028245,2]
[322792246,1713304246820,-960.04853159,0.00028337,2]
[322792248,1713304246829,-153.0,0.00029332,2]
[322792250,1713304246838,-153.0,0.00029332,2]
[322792252,1713304246847,-153.0,0.00029332,2]
[322792254,1713304246856,-300.0,0.00029498,2]
[322792256,1713304246864,-300.0,0.00029498,2]
[322792258,1713304246873,-432.28096282,0.000295,2]
[322792349,1713305431866,-888.25128644,0.00026727,2]
[322792351,1713305431875,-310.0,0.00026728,5]
[322792353,1713305431885,-197.05537377,0.00027296,2]
[322792355,1713305431894,-169.73063,0.00027397,2]
[322792356,1713305431904,-150.0,0.00027398,2]
[322792358,1713305431913,-160.9331397,0.00027959,2]
[322792360,1713305431922,-3000.0,0.00028,4]
[322792362,1713305431931,-157.77969,0.00028021,2]
[322792363,1713305431940,-250.0,0.00028389,2]
[322792364,1713305431950,-373.772891,0.0002861,2]
[322792365,1713305431960,-300.0,0.00028831,2]
[322792366,1713305431969,-300.0,0.00028831,2]
[322792367,1713305431978,-159.47698909,0.00028832,7]
[322792380,1713305438065,-340.52301091,0.00028832,7]
[322792381,1713305438075,-500.0,0.00028832,7]
[322792382,1713305438086,-500.0,0.00028832,7]
[322792383,1713305438096,-319.86,0.00028832,7]
[322792384,1713305438105,-153.0,0.00028841,2]
[322792385,1713305438113,-153.0,0.00028941,2]
[322792386,1713305438123,-153.0,0.00028941,2]
[322792387,1713305438133,-153.0,0.00028941,2]
[322792388,1713305438142,-213.71552206,0.00029352,2]
[322792535,1713306641027,-188.93614172,0.00026731,2]
[322792536,1713306641037,-359.38504553,0.00026732,2]
[322792537,1713306641046,-197.05537376,0.00027297,2]
[322792538,1713306641056,-159.330839,0.00027397,2]
[322792539,1713306641065,-178.203014,0.00027659,2]
[322792540,1713306641076,-3000.0,0.00028,4]
[322792541,1713306641088,-288.769411,0.00028007,2]
[322792542,1713306641098,-180.881973,0.00028102,2]
[322792543,1713306641108,-310.2324424,0.00029195,2]
[322792544,1713306641119,-153.0,0.00029195,2]
[322792545,1713306641129,-428.8667769,0.00029195,2]
[322792546,1713306641140,-1149.57068024,0.00029252,2]
[322792547,1713306641150,-877.37734291,0.00029252,4]
[322792548,1713306641159,-172.6051023,0.000293,2]
[322792549,1713306641169,-153.0,0.000293,2]
[322792550,1713306641179,-417.0,0.00029322,2]
[322792551,1713306641189,-181.0,0.00029349,2]
[322792552,1713306641198,-468.90340767,0.0002935,2]
[322792553,1713306641208,-154.86062544,0.0002935,2]
[322792554,1713306641218,-602.08061333,0.0002935,2]
[322792555,1713306641228,-245.73681117,0.00029351,2]
[322792556,1713306641237,-19163.59764171,0.00029352,2]
[322792557,1713306641247,-154.84515485,0.00029352,2]
[322792558,1713306641256,-3062.24756483,0.00029352,4]
[322792559,1713306641266,-151.0,0.00029352,2]
[322792560,1713306641276,-151.0,0.00029352,2]
[322792561,1713306641285,-151.0,0.00029352,2]
[322792562,1713306641295,-151.0,0.00029352,2]
[322792563,1713306641304,-151.0,0.00029352,2]
[322792564,1713306641313,-151.0,0.00029352,2]
[322792565,1713306641323,-151.0,0.00029352,2]
[322792566,1713306641332,-151.0,0.00029352,2]
[322792567,1713306641341,-151.0,0.00029352,2]
[322792568,1713306641351,-151.0,0.00029352,2]
[322792569,1713306641360,-4177.65774001,0.00029352,2]
[322792713,1713307840532,-563.75505077,0.00027251,2]
[322792714,1713307840542,-192.919451,0.00027252,2]
[322793208,1713311440717,-407.92040002,0.00025151,2]
[322793384,1713312646200,-175.28354668,0.00023051,2]
[322793385,1713312646210,-81.15059063,0.00026126,2]
[322793428,1713313832227,-150.0,0.00024026,2]
[322793430,1713313832237,-207.6188203,0.00025678,2]
[322793432,1713313832246,-177.10323034,0.00026026,2]
[322793434,1713313832257,-166.37062946,0.00026126,4]
[322793453,1713313840715,-2895.87693537,0.00026126,4]
[322793454,1713313840724,-21860.48953654,0.00026499,2]
[322793512,1713313846604,-117072.32650777,0.00026499,2]
[322793513,1713313846613,-373.66931351,0.000265,2]
[322793514,1713313846622,-292.73362,0.000265,2]
[322793515,1713313846631,-4811.453474,0.000265,2]
[322793516,1713313846640,-4811.453474,0.000265,2]
[322793517,1713313846649,-151.0,0.000265,2]
[322793518,1713313846658,-151.0,0.000265,2]
[322793519,1713313846667,-151.0,0.000265,2]
[322793520,1713313846676,-277.149216,0.000265,2]
[322793521,1713313846685,-914.367249,0.000265,2]
[322793522,1713313846694,-914.367249,0.000265,2]
[322793523,1713313846702,-914.367249,0.000265,2]
[322793524,1713313846711,-914.367249,0.000265,2]
[322793525,1713313846720,-262.619822,0.000265,2]
[322793526,1713313846729,-151.0,0.000265,2]
[322793527,1713313846737,-151.0,0.000265,2]
[322793528,1713313846747,-225.878864,0.000265,2]
[322793529,1713313846756,-151.0,0.000265,2]
[322793530,1713313846765,-151.0,0.000265,2]
[322793531,1713313846775,-151.0,0.000265,2]
[322793532,1713313846784,-151.0,0.000265,2]
[322793533,1713313846795,-151.0,0.000265,2]
[322793534,1713313846804,-269.164131,0.000265,2]
[322793535,1713313846814,-151.0,0.000265,2]
[322793536,1713313846823,-151.0,0.000265,2]
[322793537,1713313846833,-151.0,0.000265,2]
[322793538,1713313846842,-151.0,0.000265,2]
[322793539,1713313846851,-151.0,0.000265,2]
[322793540,1713313846861,-151.0,0.000265,2]
[322793541,1713313846870,-151.0,0.000265,2]
[322793542,1713313846878,-151.0,0.000265,2]
[322793543,1713313846888,-151.0,0.000265,2]
[322793544,1713313846897,-151.0,0.000265,2]
[322793545,1713313846906,-151.0,0.000265,2]
[322793546,1713313846915,-151.0,0.000265,2]
[322793547,1713313846924,-151.0,0.000265,2]
[322793548,1713313846933,-151.0,0.000265,2]
[322793549,1713313846942,-151.0,0.000265,2]
[322793550,1713313846951,-151.0,0.000265,2]
[322793551,1713313846961,-151.0,0.000265,2]
[322793552,1713313846970,-151.0,0.000265,2]
[322793553,1713313846979,-151.0,0.000265,2]
[322793554,1713313846989,-241.814444,0.000265,2]
[322793555,1713313846998,-397.470964,0.000265,2]
[322793556,1713313847008,-397.470964,0.000265,2]
[322793557,1713313847017,-397.470964,0.000265,2]
[322793558,1713313847027,-397.470964,0.000265,2]
[322793559,1713313847036,-397.470964,0.000265,2]
[322793560,1713313847045,-397.470964,0.000265,2]
[322793561,1713313847054,-397.470964,0.000265,2]
[322793562,1713313847064,-397.470964,0.000265,2]
[322793563,1713313847073,-397.470964,0.000265,2]
[322793564,1713313847082,-397.470964,0.000265,2]
[322793565,1713313847091,-397.470964,0.000265,2]
[322793566,1713313847101,-397.470964,0.000265,2]
[322793567,1713313847110,-397.470964,0.000265,2]
[322793568,1713313847118,-397.470964,0.000265,2]
[322793569,1713313847128,-397.470964,0.000265,2]
[322793570,1713313847137,-397.470964,0.000265,2]
[322793571,1713313847146,-397.470964,0.000265,2]
[322793572,1713313847156,-397.470964,0.000265,2]
[322793573,1713313847165,-397.470964,0.000265,2]
[322793574,1713313847174,-397.470962,0.000265,2]
[322793575,1713313847185,-151.0,0.000265,2]
[322793576,1713313847195,-151.0,0.000265,2]
[322793577,1713313847204,-151.0,0.000265,2]
[322793578,1713313847213,-151.0,0.000265,2]
[322793579,1713313847222,-151.0,0.000265,2]
[322793580,1713313847231,-151.0,0.000265,2]
[322793581,1713313847240,-151.0,0.000265,2]
[322793582,1713313847248,-151.0,0.000265,2]
[322793583,1713313847257,-151.0,0.000265,2]
[322793584,1713313847266,-151.0,0.000265,2]
[322793585,1713313847275,-210.642688,0.000265,2]
[322793586,1713313847285,-752.03772252,0.0002665,3]
[322793587,1713313847294,-989.0337881,0.0002675,2]
[322793588,1713313847303,-989.03378806,0.00026775,2]
[322793589,1713313847312,-989.03378806,0.000268,2]
[322793590,1713313847321,-989.03378806,0.00026824,2]
[322793591,1713313847330,-989.03378806,0.00026849,2]
[322793592,1713313847339,-177.10323034,0.0002685,2]
[322793593,1713313847348,-4811.453474,0.0002685,2]
[322793594,1713313847357,-4811.453474,0.0002685,2]
[322793595,1713313847366,-4811.453474,0.0002685,2]
[322793596,1713313847375,-4811.453474,0.0002685,2]
[322793597,1713313847385,-4811.453474,0.0002685,2]
[322793598,1713313847394,-4811.453474,0.0002685,2]
[322793599,1713313847404,-151.0,0.0002685,2]
[322793600,1713313847413,-151.0,0.0002685,2]
[322793601,1713313847422,-151.0,0.0002685,2]
[322793602,1713313847431,-914.367249,0.0002685,2]
[322793603,1713313847440,-914.367249,0.0002685,2]
[322793604,1713313847449,-914.367249,0.0002685,2]
[322793605,1713313847459,-914.367249,0.0002685,2]
[322793606,1713313847470,-914.367249,0.0002685,2]
[322793607,1713313847479,-914.367249,0.0002685,2]
[322793608,1713313847488,-153.0,0.000269,2]
[322793609,1713313847497,-153.0,0.000269,2]
[322793610,1713313847507,-153.0,0.000269,2]
[322793611,1713313847516,-153.0,0.000269,2]
[322793612,1713313847525,-4811.453474,0.000269,2]
[322793613,1713313847535,-4811.453474,0.000269,2]
[322793614,1713313847545,-4811.453474,0.000269,2]
[322793615,1713313847555,-153.0,0.000269,2]
[322793616,1713313847564,-4811.453474,0.000269,2]
[322793617,1713313847574,-4811.453474,0.000269,2]
[322793618,1713313847583,-4811.453474,0.000269,2]
[322793619,1713313847592,-151.0,0.000269,2]
[322793620,1713313847601,-151.0,0.000269,2]
[322793621,1713313847610,-151.0,0.000269,2]
[322793622,1713313847619,-151.0,0.000269,2]
[322793623,1713313847629,-249.2957316,0.000269,2]
[322793624,1713313847638,-914.367249,0.000269,2]
[322793625,1713313847648,-914.367249,0.000269,2]
[322793626,1713313847657,-914.367249,0.000269,2]
[322793627,1713313847667,-914.367249,0.000269,2]
[322793628,1713313847676,-914.367249,0.000269,2]
[322793629,1713313847685,-914.367249,0.000269,2]
[322793630,1713313847694,-914.367249,0.000269,2]
[322793631,1713313847703,-914.367249,0.000269,2]
[322793632,1713313847712,-4811.453474,0.00026948,2]
[322793633,1713313847721,-4811.453474,0.00026948,2]
[322793634,1713313847881,-269.864692,0.00026948,2]
[322793635,1713313847901,-914.367249,0.00026948,2]
[322793636,1713313847910,-914.3672539,0.00026948,2]
[322793637,1713313847919,-71728.27775614,0.00026949,2]
[322793638,1713313847928,-4811.453474,0.00026949,2]
[322793639,1713313847936,-4811.453474,0.00026949,2]
[322793640,1713313847946,-151.0,0.0002695,2]
[322793641,1713313847956,-151.0,0.0002695,2]
[322793642,1713313847966,-151.0,0.0002695,2]
[322793643,1713313847977,-151.0,0.0002695,2]
[322793644,1713313847986,-151.0,0.0002695,2]
[322793645,1713313847996,-151.0,0.0002695,2]
[322793646,1713313848005,-282.0,0.0002695,2]
[322793647,1713313848014,-4811.453474,0.0002695,2]
[322793648,1713313848023,-4811.453469,0.0002695,2]
[322793649,1713313848033,-153.0,0.00027,2]
[322793650,1713313848042,-153.0,0.00027,2]
[322793651,1713313848051,-153.0,0.00027,2]
[322793652,1713313848061,-153.0,0.00027,2]
[322793653,1713313848071,-153.0,0.00027,2]
[322793654,1713313848080,-16327.03202301,0.00027,2]
[322793655,1713313848089,-348.47351461,0.0002715,2]
[322793656,1713313848099,-256.43413731,0.00027195,2]
[322793657,1713313848107,-237.97327166,0.00027397,2]
[322793658,1713313848116,-312.608395,0.00027397,2]
[322793659,1713313848125,-216.054292,0.00027397,2]
[322793660,1713313848134,-586.0,0.000277,2]
[322793661,1713313848143,-2412.81464621,0.00028,4]
[322793662,1713313848152,-417.0,0.00028404,2]
[322793663,1713313848162,-812.18691895,0.00029,2]
[322793664,1713313848171,-150.0,0.00029026,2]
[322793665,1713313848179,-117007.9630603,0.0002935,2]
[322793666,1713313848188,-188.66114533,0.00029351,2]
[322793667,1713313848197,-376.29071073,0.00029352,2]
[322793668,1713313848205,-163.25061513,0.00029352,2]
[322793669,1713313848214,-322.07033573,0.00029499,2]
[322793670,1713313848223,-235.3617466,0.000295,2]
[322793671,1713313848232,-154.8915759,0.000295,2]
[322793672,1713313848241,-503.1325,0.000298,2]
[322793673,1713313848250,-154.84515485,0.00029828,2]
[322793674,1713313848259,-241.01674728,0.00029829,2]
[322793675,1713313848268,-309.62845823,0.00029829,2]
[322793676,1713313848277,-21343.72573695,0.0002983,5]
[322793677,1713313848285,-207.50225952,0.0002983,2]
[322793678,1713313848294,-9554.70298201,0.0002983,2]
[322793679,1713313848303,-5572.91627115,0.0002983,2]
[322793680,1713313848313,-1672.57753555,0.0002983,2]
[322793681,1713313848322,-185.83605706,0.0002983,2]
[322793682,1713313848331,-525.35430968,0.0002983,2]
[322793683,1713313848341,-408.16438819,0.0002983,2]
[322793684,1713313848353,-304.17480318,0.0002983,2]
[322793685,1713313848363,-3739.92568584,0.0002983,2]
[322793686,1713313848374,-59048.78648612,0.0002983,2]
[322793687,1713313848383,-2939.15683596,0.00029831,2]
[322793688,1713313848393,-81.45388133,0.00029832,2]
[322793689,1713313848402,-325.91026743,0.00029832,2]
[322793690,1713313848411,-205.79685127,0.00029832,2]
[322793691,1713313848419,-187.18488109,0.00029832,2]
[322793692,1713313848428,-372.74901745,0.00029832,2]
[322793693,1713313848437,-7311.20752603,0.00029832,2]
[322793694,1713313848446,-2619.14379363,0.00029832,2]
[322793695,1713313848455,-937.19103165,0.00029832,2]
[322793696,1713313848467,-2095.50910525,0.00029832,2]
[322793697,1713313848476,-1932.85012401,0.00029832,2]
[322793698,1713313848485,-236.25199096,0.00029832,2]
[322793699,1713313848494,-277.38744536,0.00029832,2]
[322793700,1713313848503,-882.129051,0.00029832,2]
[322793701,1713313848512,-164.2881999,0.00029832,2]
[322793702,1713313848520,-1000.0,0.00029832,2]
[322793703,1713313848529,-500.0,0.00029832,2]
[322793704,1713313848540,-159.71520778,0.00029833,2]
[322793705,1713313848549,-232.50525342,0.00029833,2]
[322793706,1713313848559,-31328.74092982,0.00029834,2]
[322793707,1713313848570,-5312.639999,0.000299,2]
[322793708,1713313848580,-337.74108295,0.000299,2]
[322793709,1713313848589,-337.74108295,0.000299,2]
[322793710,1713313848598,-337.74108295,0.000299,2]
[322793711,1713313848607,-337.74108295,0.000299,2]
[322793712,1713313848616,-337.74108295,0.000299,2]
[322793713,1713313848625,-337.74108295,0.000299,2]
[322793714,1713313848634,-337.74108295,0.000299,2]
[322793715,1713313848645,-337.74108295,0.000299,2]
[322793716,1713313848653,-337.74108295,0.000299,2]
[322793717,1713313848661,-337.74108295,0.000299,2]
[322793718,1713313848671,-337.74108295,0.000299,2]
[322793719,1713313848681,-337.74108295,0.000299,2]
[322793720,1713313848691,-337.74108295,0.000299,2]
[322793721,1713313848700,-337.74108295,0.000299,2]
[322793722,1713313848709,-337.74108295,0.000299,2]
[322793723,1713313848718,-337.74108295,0.000299,2]
[322793724,1713313848727,-337.74108295,0.000299,2]
[322793725,1713313848736,-337.74108295,0.000299,2]
[322793726,1713313848744,-337.74108295,0.000299,2]
[322793727,1713313848753,-2617.94932489,0.0003,5]
[322793728,1713313848763,-197.049013,0.00030137,2]
[322793729,1713313848771,-439.9551254,0.00030291,2]
[322793730,1713313848780,-284.33439458,0.00030573,4]
[322793731,1713313848789,-150.0,0.00030833,2]
[322793732,1713313848797,-153.0,0.00030839,2]
[322793733,1713313848806,-310.0,0.00031,5]
[322793734,1713313848816,-417.0,0.00031404,2]
[322793735,1713313848826,-151.28033221,0.00031779,2]
[322793736,1713313848835,-154.84515485,0.0003189,10]
[322793737,1713313848844,-157.927968,0.00031978,2]
[322793738,1713313848853,-191.14907978,0.00032,4]
[322793739,1713313848862,-370.28002814,0.00032,3]
[322793740,1713313848871,-153.0,0.00032493,2]
[322793741,1713313848881,-153.0,0.00032493,2]
[322793742,1713313848889,-153.0,0.00032493,2]
[322793743,1713313848898,-153.0,0.00032493,2]
[322793744,1713313848906,-258.191697,0.00032877,2]
[322793745,1713313848915,-258.191697,0.00032877,2]
[322793746,1713313848924,-258.191697,0.00032877,2]
[322793747,1713313848933,-258.191697,0.00032877,2]
[322793748,1713313848942,-258.191697,0.00032877,2]
[322793749,1713313848951,-258.191697,0.00032877,2]
[322793750,1713313848960,-258.191697,0.00032877,2]
[322793751,1713313848971,-258.191697,0.00032877,2]
[322793752,1713313848980,-258.191697,0.00032877,2]
[322793753,1713313848990,-258.191697,0.00032877,2]
[322793754,1713313848999,-258.191697,0.00032877,2]
[322793755,1713313849008,-258.191697,0.00032877,2]
[322793756,1713313849017,-258.191697,0.00032877,2]
[322793757,1713313849027,-258.191697,0.00032877,2]
[322793758,1713313849036,-258.191697,0.00032877,2]
[322793759,1713313849046,-258.191697,0.00032877,2]
[322793760,1713313849055,-258.191697,0.00032877,2]
[322793761,1713313849066,-258.191697,0.00032877,2]
[322793762,1713313849076,-258.191697,0.00032877,2]
[322793763,1713313849085,-258.191692,0.00032877,2]
[322793764,1713313849095,-704.95092719,0.00033,4]
[322793765,1713313849105,-5000.0,0.00033055,2]
[322793766,1713313849113,-312.608395,0.00033165,2]
[322793767,1713313849123,-216.054292,0.00033165,2]
[322793768,1713313849132,-200.0,0.000338,7]
[322793769,1713313849141,-1500.761569,0.0003384,2]
[322793770,1713313849149,-4097.28466074,0.000339,2]
[322793771,1713313849158,-502.58757332,0.00034,7]
[322793772,1713313849167,-500.0,0.00034,2]
[322793773,1713313849176,-465.51859638,0.00034,4]
[322793774,1713313849185,-5000.0,0.00034,2]
[322793775,1713313849194,-1000.0,0.00034,2]
[322793776,1713313849203,-1530.0,0.00034,2]
[322793777,1713313849212,-33278.5747,0.00034186,30]
[322793778,1713313849221,-1500.0,0.00034191,7]
[322793779,1713313849231,-500.0,0.00034191,7]
[322793780,1713313849241,-1000.0,0.00034191,7]
[322793781,1713313849252,-1000.0,0.00034191,7]
[322793782,1713313849261,-504.24982664,0.00034191,7]
[322793783,1713313849272,-1500.761569,0.00034263,2]
[322793784,1713313849282,-240483.95497827,0.000344,2]
[322793785,1713313849290,-417.0,0.00034404,2]
[322793786,1713313849300,-176.810798,0.00034593,2]
[322793787,1713313849308,-168.456499,0.00034593,2]
[322793788,1713313849318,-157.92797,0.00034593,2]
[322793789,1713313849327,-583.712102,0.00034593,2]
[322793790,1713313849335,-500.253856,0.00034593,2]
[322793791,1713313849345,-263.970588,0.00034593,2]
[322793792,1713313849353,-267.479756,0.00034593,2]
[322793793,1713313849362,-157.927972,0.00034593,2]
[322793794,1713313849372,-165.760124,0.00034593,2]
[322793795,1713313849381,-1500.761569,0.00034686,2]
[322793796,1713313849390,-1000.0,0.000348,3]
[322793797,1713313849399,-226.45155546,0.000349,4]
[322793798,1713313849409,-3200.0,0.0003499,9]
[322793799,1713313849418,-7422.18,0.00034999,2]
[322793800,1713313849427,-7422.18,0.00034999,2]
[322793801,1713313849436,-26672.32066589,0.00035,7]
[322793802,1713313849445,-596.97026302,0.00035,2]
[322793803,1713313849454,-6869.95989293,0.00035,4]
[322793804,1713313849467,-154.81422293,0.00035,4]
[322793805,1713313849476,-12731.75721889,0.00035,4]
[322793806,1713313849485,-1000.0,0.00035,2]
[322793807,1713313849494,-2000.0,0.00035,2]
[322793808,1713313849503,-475.0,0.00035,2]
[322793809,1713313849512,-37380.50207881,0.00035,5]
[322793810,1713313849522,-218.0,0.00035,10]
[322793811,1713313849532,-498.52280694,0.00035,2]
[322793812,1713313849542,-15540.0,0.00035,30]
[322793813,1713313849552,-1260.0,0.00035,30]
[322793814,1713313849561,-1000.0,0.00035,4]
[322793815,1713313849571,-359.17016176,0.00035,2]
[322793816,1713313849580,-1000.0,0.00035,7]
[322793817,1713313849589,-1177.0,0.00035,7]
[322793818,1713313849598,-1000.0,0.00035,7]
[322793819,1713313849609,-1000.0,0.00035,7]
[322793820,1713313849618,-1000.0,0.00035,7]
[322793821,1713313849628,-1000.0,0.00035,7]
[322793822,1713313849638,-1000.0,0.00035,7]
[322793823,1713313849647,-500.76108013,0.00035,7]
[322793824,1713313849656,-583.712102,0.00035026,2]
[322793825,1713313849665,-500.253856,0.00035026,2]
[322793826,1713313849675,-267.479756,0.00035026,2]
[322793827,1713313849684,-263.970588,0.00035026,2]
[322793828,1713313849694,-739.54509048,0.000351,2]
[322793829,1713313849702,-1500.761569,0.00035109,2]
[322793830,1713313849712,-176.810798,0.0003517,2]
[322793831,1713313849721,-168.456499,0.00035458,2]
[322793832,1713313849730,-583.712102,0.00035458,2]
[322793833,1713313849739,-500.253856,0.00035458,2]
[322793834,1713313849748,-267.479756,0.00035458,2]
[322793835,1713313849758,-263.970588,0.00035458,2]
[322793836,1713313849768,-1500.761569,0.00035532,2]
[322793837,1713313849778,-400.0,0.00035616,2]
[322793838,1713313849787,-1169.642868,0.00035616,120]
[322793839,1713313849796,-176.810798,0.00035747,2]
[322793840,1713313849805,-154.87609912,0.0003589,2]
[322793841,1713313849816,-583.712102,0.00035891,2]
[322793842,1713313849825,-500.253856,0.00035891,2]
[322793843,1713313849834,-267.479756,0.00035891,2]
[322793844,1713313849843,-263.970588,0.00035891,2]
[322793845,1713313849852,-198.39212119,0.00036205,5]
[322793846,1713313849861,-255.88574452,0.0003624,2]
[322793847,1713313849870,-168.456499,0.00036323,2]
[322793848,1713313849880,-176.810798,0.00036323,2]
[322793849,1713313849889,-583.712102,0.00036323,2]
[322793850,1713313849898,-500.253856,0.00036323,2]
[322793851,1713313849907,-267.479756,0.00036323,2]
[322793852,1713313849916,-263.970588,0.00036323,2]
[322793853,1713313849926,-7422.18,0.00036999,2]
[322793854,1713313849935,-7422.18,0.00036999,2]
[322793855,1713313849944,-2046.20344708,0.00037,2]
[322793856,1713313849955,-50157.0,0.00037,7]
[322793857,1713313849964,-90987.85893744,0.00037,2]
[322793858,1713313849974,-167.32415065,0.00037065,2]
[322793859,1713313849983,-160.0,0.00037184,3]
[322793860,1713313849992,-417.0,0.00037404,2]
[322793861,1713313850002,-2000.0,0.000375,2]
[322793862,1713313850011,-3000.0,0.000375,32]
[322793863,1713313850020,-3000.0,0.0003751,32]
[322793864,1713313850029,-3000.0,0.0003752,32]
[322793865,1713313850039,-3000.0,0.0003753,32]
[322793866,1713313850048,-3000.0,0.0003754,32]
[322793867,1713313850058,-3000.0,0.0003755,32]
[322793868,1713313850068,-3000.0,0.0003756,32]
[322793869,1713313850077,-3806.913403,0.0003757,32]
[322793870,1713313850087,-160.0,0.00037695,4]
[322793871,1713313850096,-150.5,0.00037789,35]
[322793872,1713313850106,-150.5,0.0003779,35]
[322793873,1713313850116,-375.0,0.0003779,35]
[322793874,1713313850125,-150.5,0.00037799,35]
[322793875,1713313850133,-150.5,0.000378,35]
[322793876,1713313850141,-375.0,0.000378,35]
[322793877,1713313850150,-4909.12,0.00037808,7]
[322793878,1713313850159,-150.5,0.00037809,35]
[322793879,1713313850168,-157.19,0.0003781,35]
[322793880,1713313850177,-150.5,0.0003781,35]
[322793881,1713313850186,-375.0,0.0003781,35]
[322793882,1713313850195,-1403.45362776,0.00037825,3]
[322793883,1713313850204,-2704.03255767,0.00037826,2]
[322793884,1713313850213,-151.7475905,0.00037826,2]
[322793885,1713313850223,-1001.86705109,0.00037826,2]
[322793886,1713313850233,-250.0,0.00037826,14]
[322793887,1713313850242,-250.0,0.00037826,21]
[322793888,1713313850251,-250.0,0.00037826,28]
[322793889,1713313850260,-42699.4,0.00037826,7]
[322793890,1713313850269,-224.10525976,0.00037826,10]
[322793891,1713313850278,-314.97545056,0.00037826,2]
[322793892,1713313850287,-18892.49290613,0.00037826,7]
[322793893,1713313850296,-280.66947627,0.00037826,2]
[322793894,1713313850305,-150.0,0.00037826,2]
[322793895,1713313850314,-27864.41098076,0.00037826,2]
[322793896,1713313850324,-468.29969759,0.00037826,2]
[322793897,1713313850333,-430.00525431,0.00037826,2]
[322793898,1713313850342,-3006.9545917,0.00037826,2]
[322793899,1713313850351,-300.0,0.00037826,2]
[322793900,1713313850360,-779.9792,0.00037826,2]
[322793901,1713313850369,-28552.40045276,0.00037826,2]
[322793902,1713313850379,-87801.23011126,0.00037826,2]
[322793903,1713313850388,-9926.74010902,0.00037826,2]
[322793904,1713313850397,-1189.44925822,0.00037826,14]
[322793905,1713313850406,-286.12025676,0.00037826,2]
[322793906,1713313850415,-4081.7968373,0.00037826,2]
[322793907,1713313850424,-160780.91048502,0.00037826,2]
[322793908,1713313850433,-3913.3634331,0.00037826,2]
[322793909,1713313850442,-16444.92564208,0.00037826,2]
[322793910,1713313850452,-154.76784723,0.00037826,2]
[322793911,1713313850463,-34008.85827075,0.00037826,2]
[322793912,1713313850473,-8000.1300274,0.00037826,5]
[322793913,1713313850482,-120168.15777774,0.00037826,7]
[322793914,1713313850491,-503.82384879,0.00037826,30]
[322793915,1713313850501,-159.35458275,0.00037826,30]
[322793916,1713313850511,-185.78940352,0.00037826,30]